bitfinex-derivatives/quotes_SOLF0:USTF0_20241021
["timestamp","ask_amount","ask_price","bid_price","bid_amount"]
[1729532415725,2.642,165.99,165.96,3.0138]
[1729532416120,2.642,165.99,165.89,4.72]
[1729532416320,5.58363323,165.99,165.97,3.0135]
[1729532418417,5.58363323,165.99,165.89,4.72]
[1729532418617,5.58363323,165.99,165.96,3.0137]
[1729532420927,5.58363323,165.99,165.91,4.72]
[1729532422829,5.58363323,165.99,165.95,3.0138]
[1729532426331,5.58363323,165.99,165.91,4.72]
[1729532426631,5.58363323,165.99,165.95,3.0139]
[1729532427025,5.58363323,165.99,165.96,3.0137]
[1729532428024,5.58363323,165.99,165.97,3.0135]
[1729532428222,5.58363323,165.99,165.91,4.72]
[1729532429534,5.58363323,165.99,165.95,3.0138]
[1729532429835,5.58363323,165.99,165.91,4.72]
[1729532430531,5.58363323,165.99,165.88,111.86807173]
[1729532431133,5.58363323,165.99,165.91,3.0146]
[1729532431134,3.0137,165.97,165.91,3.0146]
[1729532431334,4.72,165.96,165.91,3.0146]
[1729532431732,1.3445,165.95,165.88,111.86807173]
[1729532431931,1.3445,165.95,165.92,3.0145]
[1729532432139,1.3445,165.95,165.88,111.86807173]
[1729532432639,1.3445,165.95,165.92,3.0145]
[1729532434532,1.3445,165.95,165.88,111.86807173]
[1729532434739,1.3445,165.95,165.93,3.0143]
[1729532435132,1.3445,165.95,165.88,111.86807173]
[1729532435739,3.0142,165.94,165.9,3.0148]
[1729532435934,4.72,165.94,165.88,111.86807173]
[1729532436138,4.72,165.94,165.84,4.72]
[1729532436335,4.72,165.94,165.93,3.0143]
[1729532437437,4.72,165.94,165.85,6.0316]
[1729532438142,4.72,165.94,165.91,3.0147]
[1729532438541,1.2974,165.93,165.91,3.0147]
[1729532439346,1.2974,165.93,165.92,3.0145]
[1729532441246,1.2974,165.93,165.87,3.0153]
[1729532441550,1.2974,165.93,165.84,4.72]
[1729532441947,1.2974,165.93,165.9,3.0147]
[1729532442442,1.2974,165.93,165.89,3.0149]
[1729532443847,3.0149,165.9,165.85,3.0156]
[1729532444146,3.0149,165.9,165.79,1.342]
[1729532444147,1.3156,165.89,165.79,1.342]
[1729532444353,1.3156,165.89,165.8,2.99921132]
[1729532445147,1.3156,165.89,165.88,3.0152]
[1729532446239,1.3156,165.89,165.84,3.0159]
[1729532446445,1.3156,165.89,165.79,7.3756]
[1729532446652,1.3156,165.89,165.8,4.72]
[1729532446846,1.3156,165.89,165.86,3.0156]
[1729532447144,4.72,165.88,165.8,4.72]
[1729532447447,4.72,165.88,165.74,2.19276429]
[1729532447646,1.2455,165.87,165.75,4.72]
[1729532447847,1.2455,165.87,165.81,3.0164]
[1729532448747,3.0157,165.86,165.81,3.0164]
[1729532449146,3.0157,165.86,165.8,3.0166]
[1729532449547,3.0157,165.86,165.75,4.72]
[1729532449747,3.0157,165.86,165.74,1.93]
[1729532450045,3.0157,165.86,165.75,4.72]
[1729532450247,3.0157,165.86,165.81,3.0164]
[1729532450948,1.2455,165.87,165.75,4.72]
[1729532451252,1.2325,165.86,165.75,4.72]
[1729532451452,3.0161,165.84,165.78,3.0169]
[1729532451643,6.0666,165.83,165.74,1.2457]
[1729532451849,6.0666,165.83,165.71,179.51673089]
[1729532452149,6.0666,165.83,165.71,174.79673089]
[1729532452543,3.0166,165.81,165.75,3.0175]
[1729532452744,1.3286,165.8,165.75,3.0175]
[1729532452954,4.72,165.79,165.75,3.0175]
[1729532453453,4.72,165.79,165.71,174.79673089]
[1729532453454,4.72,165.79,165.76,3.0174]
[1729532453655,3.00838365,165.78,165.76,3.0174]
[1729532453856,1.3286,165.8,165.71,174.79673089]
[1729532454252,1.3286,165.8,165.72,3.07931474]
[1729532454448,4.72,165.82,165.73,4.72]
[1729532454752,3.05064047,165.81,165.8,3.0166]
[1729532454947,6.0666,165.83,165.8,3.0166]
[1729532455359,6.0666,165.83,165.79,3.0168]
[1729532455758,6.0666,165.83,165.73,4.72]
[1729532455957,1.3466,165.83,165.82,3.0163]
[1729532461051,1.3466,165.83,165.81,3.0164]
[1729532461859,1.3466,165.83,165.82,3.0163]
[1729532462960,4.72,165.86,165.84,3.016]
[1729532463265,4.72,165.86,165.76,6.0348]
[1729532463266,4.72,165.88,165.77,5.953]
[1729532463463,4.72,165.88,165.85,3.0157]
[1729532464155,4.72,165.88,165.77,6.6371]
[1729532464356,4.72,165.88,165.87,3.0154]
[1729532467566,2.4914,165.89,165.88,3.0152]
[1729532467971,1.2552,165.89,165.88,3.0152]
[1729532469461,7.78645686,165.9,165.81,7.7258469]
[1729532469665,2.564,165.94,165.81,7.7258469]
[1729532470068,1.274,165.94,165.93,3.0143]
[1729532470267,1.274,165.94,165.85,6.0313]
[1729532470268,4.72,165.95,165.87,4.72]
[1729532470469,4.72,165.95,165.88,1.2243]
[1729532470665,4.23727935,166.04,165.88,1.2243]
[1729532470864,7.70295562,166.03,165.89,0.6834]
[1729532471263,7.70295562,166.03,165.9,6.0297]
[1729532471464,7.70295562,166.03,165.91,4.72]
[1729532471771,7.70295562,166.03,165.99,3.0131]
[1729532474182,7.70295562,166.03,166.0,3.013]
[1729532474986,7.70295562,166.03,166.01,3.0129]
[1729532477586,7.70295562,166.03,165.95,4.72]
[1729532477889,7.70295562,166.03,166.02,3.0127]
[1729532481897,7.70295562,166.03,166.02,1.98858564]
[1729532485899,7.70295562,166.03,165.95,1.3499]
[1729532486898,7.70295562,166.03,166.01,3.0128]
[1729532488597,7.70295562,166.03,165.95,1.3499]
[1729532488896,7.70295562,166.03,166.02,3.0127]
[1729532489289,7.70295562,166.03,165.95,1.3499]
[1729532489597,4.72,166.02,165.95,1.3499]
[1729532489797,4.72,166.02,165.99,3.0132]
[1729532490798,7.7328,166.02,165.95,1.3499]
[1729532491287,4.72,166.02,165.99,3.0131]
[1729532492492,4.72,166.02,165.95,1.3499]
[1729532492798,4.72,166.02,166.01,3.0129]
[1729532495896,4.72,166.02,165.95,1.3499]
[1729532496104,4.72,166.02,166.0,3.013]
[1729532496598,4.72,166.02,165.95,1.3499]
[1729532496800,3.013,166.01,165.91,4.72]
[1729532497000,3.013,166.01,165.91,5.9898]
[1729532498197,22.81,166.02,165.78,15.0854]
[1729532498405,3.0137,165.97,165.85,6.0313]
[1729532498605,7.7337,165.97,165.85,6.0313]
[1729532499302,4.72,165.97,165.93,3.0143]
[1729532500404,3.0138,165.96,165.91,3.0145]
[1729532502107,3.0138,165.96,165.92,3.0145]
[1729532502806,3.014,165.95,165.9,3.0148]
[1729532503410,3.014,165.95,165.91,3.0147]
[1729532504606,1.3541,165.96,165.9,3.0148]
[1729532505007,3.0142,165.94,165.84,1.243]
[1729532505203,3.05741037,165.94,165.89,3.015]
[1729532505408,4.7,165.93,165.89,3.015]
[1729532505914,4.7,165.93,165.9,3.0149]
[1729532506211,7.72695387,165.93,165.9,3.0149]
[1729532506914,7.72695387,165.93,165.84,1.243]
[1729532507509,7.72695387,165.93,165.89,3.015]
[1729532509612,7.72695387,165.93,165.84,1.243]
[1729532509910,7.72695387,165.93,165.84,5.943]
[1729532510808,7.72695387,165.93,165.89,3.0149]
[1729532511815,7.72695387,165.93,165.84,5.943]
[1729532512015,7.72695387,165.93,165.9,3.0149]
[1729532513818,7.72695387,165.93,165.86,3.0155]
[1729532514018,7.72695387,165.93,165.84,5.943]
[1729532514614,7.72695387,165.93,165.9,3.0147]
[1729532516823,7.72695387,165.93,165.84,5.943]
[1729532517123,7.72695387,165.93,165.91,3.0147]
[1729532518030,7.72695387,165.93,165.84,5.943]
[1729532518728,7.72695387,165.93,165.86,3.0155]
[1729532518920,7.72695387,165.93,165.84,5.943]
[1729532519225,7.72695387,165.93,165.9,3.0148]
[1729532520026,7.72695387,165.93,165.84,5.943]
[1729532520522,7.72695387,165.93,165.9,3.0147]
[1729532520715,4.7,165.96,165.85,1.9295]
[1729532521223,4.7,165.96,165.87,6.0309]
[1729532521419,2.5886,166.01,165.88,4.7]
[1729532521636,4.7,166.0,165.88,4.7]
[1729532522429,3.0134,165.98,165.91,3.0146]
[1729532522624,3.0134,165.98,165.85,1.9295]
[1729532522829,3.0134,165.98,165.86,4.7]
[1729532523126,3.0134,165.98,165.93,3.0142]
[1729532525526,3.0134,165.98,165.94,3.0141]
[1729532528126,4.7,166.0,165.94,3.0141]
[1729532528326,3.0133,165.99,165.95,3.014]
[1729532528729,4.7,166.0,165.86,4.7]
[1729532528924,3.0138,165.97,165.86,4.7]
[1729532529120,4.7,165.96,165.86,4.7]
[1729532529426,4.7,165.95,165.93,3.0142]
[1729532531231,4.7,165.95,165.92,3.0144]
[1729532531635,4.7,165.95,165.86,4.7]
[1729532531824,4.7,165.95,165.93,3.0142]
[1729532532437,4.7,165.95,165.93,3.0143]
[1729532534230,4.7,165.95,165.94,3.0141]
[1729532538535,5.6016,166.01,165.97,3.0135]
[1729532538730,2.5886,166.01,165.9,4.7]
[1729532538930,4.7,166.02,165.91,1.2568]
[1729532539136,4.7,166.02,165.91,3.2845]
[1729532539336,4.7,166.02,166.0,3.013]
[1729532540735,7.70295562,166.03,166.02,3.0127]
[1729532547639,4.64522657,166.03,166.02,3.0127]
[1729532547842,7.62695626,166.03,166.02,3.0127]
[1729532551433,4.64522657,166.03,166.02,3.0127]
[1729532552041,7.67981745,166.03,166.02,3.0127]
[1729532553039,7.67981745,166.03,165.97,1.2844]
[1729532553637,7.7128,166.02,165.97,4.2979]
[1729532553831,7.7128,166.02,165.97,1.2844]
[1729532554839,7.7128,166.02,165.98,3.0134]
[1729532555846,4.7,166.02,165.95,3.0139]
[1729532556542,3.0132,166.0,165.95,3.0139]
[1729532556845,3.0132,166.0,165.9,4.7]
[1729532557341,3.0132,166.0,165.89,117.84667057]
[1729532557537,3.0132,166.0,165.96,3.0138]
[1729532559443,4.7,166.02,165.89,117.84667057]
[1729532559650,4.7,166.02,166.0,3.013]
[1729532560149,4.7,166.02,165.93,4.7]
[1729532560543,4.7,166.02,166.01,3.0129]
[1729532561054,4.64522657,166.03,166.02,3.0127]
[1729532561849,4.64522657,166.03,165.95,6.7121]
[1729532562045,4.64522657,166.03,165.96,5.9698]
[1729532562546,4.64522657,166.03,166.0,3.013]
[1729532563846,4.64522657,166.03,165.96,5.9698]
[1729532564046,4.64522657,166.03,165.98,3.0134]
[1729532564247,4.7,166.02,165.98,3.0134]
[1729532564943,4.7,166.02,165.93,3.0142]
[1729532565146,4.7,166.02,165.9,7.2553]
[1729532565147,4.7,166.02,165.91,6.0297]
[1729532565544,3.013,166.01,165.91,6.0297]
[1729532565747,4.7,166.02,165.91,1.3297]
[1729532565947,4.2873,166.0,165.94,3.014]
[1729532566754,1.2741,166.0,165.91,1.3297]
[1729532567348,4.2872,166.0,165.95,3.0138]
[1729532568761,3.0133,165.99,165.91,1.3297]
[1729532568959,4.7,165.98,165.91,1.3297]
[1729532569458,4.7,165.98,165.93,3.0142]
[1729532569459,7.7135,165.98,165.93,3.0142]
[1729532570857,4.7,165.98,165.96,3.0137]
[1729532571251,1.2741,166.0,165.91,1.3297]
[1729532571456,4.7,165.99,165.91,1.3297]
[1729532571652,1.2741,166.0,165.91,1.3297]
[1729532571861,4.7,165.99,165.91,1.3297]
[1729532572653,4.7,165.99,165.98,3.0134]
[1729532584864,4.7,165.99,165.91,1.3297]
[1729532585559,4.7,165.99,165.95,3.0138]
[1729532585766,4.7,165.99,165.91,1.3297]
[1729532586866,4.7,165.99,165.96,3.0137]
[1729532589869,7.7133,165.99,165.95,3.0138]
[1729532590069,4.7,165.99,165.89,111.86417057]
[1729532590367,19.3943,165.98,165.81,4.7]
[1729532590559,19.3943,165.98,165.89,3.0149]
[1729532590869,1.3147,165.97,165.89,3.0149]
[1729532591067,1.3147,165.97,165.9,3.0148]
[1729532591068,3.0143,165.94,165.9,3.0148]
[1729532591269,4.7,165.93,165.9,3.0148]
[1729532591771,4.7,165.93,165.81,4.7]
[1729532592066,2.97871264,165.94,165.81,6.2080875]
[1729532592269,4.7,165.96,165.81,6.2080875]
[1729532592567,4.7,165.96,165.95,3.014]
[1729532592766,4.7,165.96,165.87,4.7]
[1729532592967,4.7,165.96,165.87,5.9285]
[1729532593169,4.7,165.96,165.95,3.014]
[1729532594368,4.7,165.96,165.94,3.0141]
[1729532594564,4.7,165.96,165.87,1.2285]
[1729532594963,4.7,165.96,165.92,3.0145]
[1729532596368,4.7,165.96,165.93,3.0143]
[1729532597666,4.7,165.96,165.87,1.2285]
[1729532597667,1.3147,165.97,165.96,3.0138]
[1729532597966,6.0147,165.97,165.96,3.0138]
[1729532598164,1.2741,166.0,165.97,3.0134]
[1729532598363,4.7,165.99,165.97,3.0134]
[1729532600873,7.7133,165.99,165.97,3.0134]
[1729532601268,4.7,165.99,165.97,3.0134]
[1729532601673,4.7,165.99,165.88,6.0305]
[1729532601874,4.7,165.99,165.89,4.7]
[1729532602377,4.7,165.99,165.98,3.0134]
[1729532603682,4.7,166.0,165.99,3.0132]
[1729532604069,4.64522657,166.03,165.93,1.355]
[1729532604276,4.7,166.02,166.01,3.0128]
[1729532605777,4.64522657,166.03,166.01,3.0128]
[1729532606079,4.7,166.02,166.01,3.0128]
[1729532611185,4.7,166.02,165.93,8.0366]
[1729532611377,4.7,166.02,166.0,3.013]
[1729532615884,4.7,166.02,166.01,3.0129]
[1729532616181,4.7,166.02,165.93,8.0366]
[1729532616182,2.60772657,166.03,165.93,8.0366]
[1729532616377,2.60772657,166.03,166.02,3.0127]
[1729532622687,4.23727935,166.04,165.98,4.7]
[1729532622884,4.23727935,166.04,166.03,3.0128]
[1729532625591,3.06117935,166.04,166.03,3.0128]
[1729532628991,4.24068223,166.08,166.07,3.0121]
[1729532629386,2.54348223,166.08,166.07,3.0121]
[1729532639697,2.54348223,166.08,166.07,7.6921]
[1729532640296,3.12441651,166.09,166.07,4.68]
[1729532640592,3.12441651,166.09,166.08,3.0119]
[1729532642298,4.68,166.2,166.09,3.0117]
[1729532642494,7.6529493,166.2,166.08,3.02776408]
[1729532642798,2.9729493,166.2,166.08,3.02776408]
[1729532642995,4.68,166.2,166.09,6.0234]
[1729532643197,7.7303526,166.2,166.09,10.7034]
[1729532643402,1.2647,166.19,166.09,10.7034]
[1729532643597,1.2647,166.19,166.15,3.0105]
[1729532643793,1.2647,166.19,166.09,6.0234]
[1729532643994,1.2647,166.19,166.1,4.68]
[1729532644202,1.2647,166.19,166.08,3.01625719]
[1729532644398,1.2647,166.19,166.09,4.68]
[1729532644600,2.7053,166.18,166.09,4.68]
[1729532644800,2.7053,166.18,166.14,3.0108]
[1729532645494,3.0104,166.17,166.05,10.7049]
[1729532645695,2.7053,166.18,166.06,3.04607043]
[1729532645696,4.68,166.16,166.06,3.04607043]
[1729532646403,4.68,166.16,166.09,3.0117]
[1729532646602,4.68,166.16,166.06,3.04607043]
[1729532647103,4.68,166.16,166.05,10.7049]
[1729532647496,7.6905,166.16,166.05,10.7049]
[1729532647805,4.68,166.16,166.05,4.68]
[1729532648003,7.6905,166.16,166.05,4.68]
[1729532648298,4.68,166.16,166.05,4.68]
[1729532649502,4.68,166.16,166.13,3.0109]
[1729532649702,4.68,166.16,166.05,4.68]
[1729532650396,4.68,166.16,166.02,4.68]
[1729532650704,4.68,166.16,166.02,7.74884098]
[1729532650892,7.6906,166.16,166.1,3.0114]
[1729532651302,4.68,166.16,166.1,3.0114]
[1729532652404,3.0108,166.15,166.1,3.0114]
[1729532652701,4.68,166.16,166.09,3.0117]
[1729532652910,4.68,166.16,166.02,7.74884098]
[1729532653096,3.0108,166.15,166.09,3.0116]
[1729532654203,22.77,166.16,165.98,0.6833]
[1729532654407,40.86,166.16,165.95,6.0283]
[1729532654600,3.012,166.08,166.02,3.0129]
[1729532654802,8.4704,166.07,166.02,3.0129]
[1729532655101,8.4704,166.07,166.0,3.0134]
[1729532655295,1.0,166.14,166.01,4.68]
[1729532655500,36.18,166.24,166.01,5.363]
[1729532655501,2.98547744,166.15,166.01,5.363]
[1729532655795,2.5917,166.19,166.13,3.0109]
[1729532655993,5.57115348,166.19,166.09,4.68]
[1729532656195,7.2717,166.19,166.09,4.68]
[1729532656399,7.2717,166.19,166.13,3.0109]
[1729532656604,10.21651568,166.19,166.09,4.68]
[1729532657507,13.22651568,166.19,166.12,3.0111]
[1729532657901,13.22651568,166.19,166.09,4.68]
[1729532658899,10.21651568,166.19,166.13,3.011]
[1729532659299,10.21651568,166.19,166.09,4.68]
[1729532660102,10.21651568,166.19,166.14,3.0108]
[1729532661608,10.21651568,166.19,166.09,4.68]
[1729532661807,10.21651568,166.19,166.15,3.0106]
[1729532662401,10.21651568,166.19,166.01,0.683]
[1729532662609,3.0103,166.17,166.05,6.0249]
[1729532662909,1.2779,166.16,166.06,4.68]
[1729532663111,4.68,166.15,166.12,3.0111]
[1729532663608,4.68,166.15,166.06,4.68]
[1729532664318,4.68,166.15,166.08,3.0118]
[1729532664621,4.68,166.15,166.06,4.68]
[1729532665613,4.68,166.15,166.01,0.683]
[1729532665827,4.68,166.15,166.08,3.0117]
[1729532666124,4.68,166.15,166.02,4.68]
[1729532666623,3.0109,166.14,166.09,3.0117]
[1729532667024,2.5463,166.13,166.09,3.0117]
[1729532667524,2.5463,166.13,166.02,4.68]
[1729532668019,3.0119,166.08,166.03,3.0126]
[1729532668221,2.5417,166.07,165.98,4.68]
[1729532668925,5.59459496,166.07,165.98,4.68]
[1729532669121,5.59459496,166.07,166.03,3.0127]
[1729532669720,5.59459496,166.07,166.02,3.0129]
[1729532670222,5.59459496,166.07,166.03,3.0127]
[1729532670422,5.59459496,166.07,165.98,4.68]
[1729532670721,5.59459496,166.07,165.95,9.11165306]
[1729532670924,5.59459496,166.07,165.96,69.76]
[1729532671121,1.311,166.06,166.01,3.0131]
[1729532672118,1.311,166.06,166.02,3.0129]
[1729532672316,1.311,166.06,165.96,4.68]
[1729532672721,1.311,166.06,166.0,3.0132]
[1729532672926,1.311,166.06,165.95,4.68]
[1729532673131,4.68,166.05,165.95,4.68]
[1729532673326,4.68,166.05,165.95,7.63815986]
[1729532673526,4.68,166.05,166.01,3.0131]
[1729532674215,4.68,166.05,165.95,4.68]
[1729532674216,4.68,166.05,166.0,3.0132]
[1729532674620,4.68,166.05,165.95,4.68]
[1729532675230,4.68,166.05,165.92,1.3006]
[1729532675429,4.68,166.05,165.93,4.68]
[1729532675730,3.0127,166.04,165.93,4.68]
[1729532676124,3.0127,166.04,165.98,3.0136]
[1729532676325,4.68,166.05,165.98,3.0136]
[1729532676633,3.013,166.03,165.97,3.0138]
[1729532677320,22.77,166.05,165.97,3.0138]
[1729532677519,40.86,166.05,165.9,111.84764952]
[1729532678125,1.0,166.04,165.9,111.84764952]
[1729532678521,3.014,165.97,165.91,3.0149]
[1729532678829,8.4607,165.96,165.9,111.84764952]
[1729532679322,8.4607,165.96,165.85,5.9116]
[1729532679528,11.51382575,165.96,165.85,5.9116]
[1729532679731,11.51382575,165.96,165.92,3.0148]
[1729532680229,11.51382575,165.96,165.91,3.0148]
[1729532680732,14.52792575,165.96,165.85,5.9116]
[1729532680931,11.51382575,165.96,165.85,5.9116]
[1729532681225,11.51382575,165.96,165.85,1.2316]
[1729532681436,11.51382575,165.96,165.9,3.0151]
[1729532681929,11.51382575,165.96,165.89,3.0153]
[1729532682325,11.51382575,165.96,165.85,4.68]
[1729532682919,3.0143,165.95,165.85,4.68]
[1729532683423,3.0143,165.95,165.89,3.0152]
[1729532683823,3.0148,165.92,165.85,3.0161]
[1729532684019,4.68,165.91,165.82,111.88454263]
[1729532684221,4.68,165.9,165.82,111.88454263]
[1729532684430,5.9326,165.89,165.82,111.88454263]
[1729532686223,5.9326,165.89,165.86,3.0159]
[1729532687329,5.9326,165.89,165.82,111.88454263]
[1729532687529,5.9326,165.89,165.85,3.016]
[1729532688234,5.9326,165.89,165.82,111.88454263]
[1729532690330,5.9326,165.89,165.86,3.0158]
[1729532691036,5.9326,165.89,165.87,3.0156]
[1729532692437,1.2526,165.89,165.86,3.0158]
[1729532692741,1.2526,165.89,165.82,111.88454263]
[1729532692935,1.2526,165.89,165.86,3.0158]
[1729532695841,1.2526,165.89,165.87,3.0157]
[1729532701445,1.2526,165.89,165.78,6.0344]
[1729532701651,1.2526,165.89,165.79,4.68]
[1729532701948,1.2526,165.89,165.74,6.0361]
[1729532702141,18.09,165.87,165.74,4.68]
[1729532702349,4.68,165.86,165.74,4.68]
[1729532702547,7.7026199,165.86,165.74,4.68]
[1729532702738,3.0226199,165.86,165.83,3.0164]
[1729532702943,4.68,165.87,165.78,4.68]
[1729532703144,4.68,165.91,165.79,2.6592]
[1729532703450,1.2957,165.92,165.79,2.6592]
[1729532703644,4.68,165.91,165.8,6.034]
[1729532704349,4.68,165.92,165.9,3.015]
[1729532705348,4.68,165.92,165.89,3.0153]
[1729532705852,4.68,165.92,165.87,3.0156]
[1729532706345,4.68,165.92,165.83,4.68]
[1729532706558,4.68,165.92,165.88,3.0154]
[1729532706848,3.9343,165.95,165.83,4.68]
[1729532707042,4.68,165.94,165.83,4.68]
[1729532707239,4.68,165.94,165.84,0.9797]
[1729532708255,4.68,165.98,165.85,1.2462]
[1729532708751,7.71660545,165.98,165.85,1.2462]
[1729532709144,3.03660545,165.98,165.85,1.2462]
[1729532709345,4.68,165.99,165.95,3.0141]
[1729532709544,5.5343,166.02,165.9,4.68]
[1729532709545,2.5212,166.02,165.9,4.68]
[1729532709744,4.68,166.01,165.91,1.2257]
[1729532711159,5.9655,166.02,165.91,1.2257]
[1729532711353,5.9655,166.02,165.92,2.2138]
[1729532711654,4.68,166.02,166.0,3.0132]
[1729532711860,4.68,166.03,166.0,3.0132]
[1729532712050,66.4768,166.06,165.94,4.68]
[1729532712359,4.68,166.05,165.94,4.68]
[1729532712754,3.0127,166.04,165.97,3.0137]
[1729532713153,4.68,166.05,165.93,4.68]
[1729532713648,22.79,166.05,165.92,1.2354]
[1729532713850,3.0129,166.03,165.96,3.014]
[1729532714049,3.0129,166.03,165.92,5.9154]
[1729532714449,3.0129,166.03,165.96,3.0139]
[1729532715155,3.0133,166.01,165.92,1.2354]
[1729532715355,4.68,166.0,165.91,4.68]
[1729532715559,7.2338,166.0,165.91,4.68]
[1729532715760,10.2473,166.0,165.94,3.0143]
[1729532716161,5.5673,166.0,165.94,3.0143]
[1729532716459,3.0123,166.06,165.93,4.68]
[1729532716660,4.68,166.06,165.94,1.317]
[1729532717362,4.68,166.06,165.94,2.6569]
[1729532718064,4.36139496,166.07,165.94,2.6569]
[1729532719261,4.36139496,166.07,166.03,3.0127]
[1729532719661,4.36139496,166.07,165.98,4.68]
[1729532720663,4.36139496,166.07,166.04,3.0125]
[1729532720863,4.36139496,166.07,165.98,4.68]
[1729532721163,3.08093547,166.1,166.08,3.0119]
[1729532723756,3.08093547,166.1,166.09,3.0117]
[1729532724355,7.321,166.11,166.01,4.68]
[1729532724558,7.321,166.11,166.1,3.0115]
[1729532724760,5.7222893,166.11,166.1,3.0115]
[1729532725459,3.0812893,166.11,166.1,3.0115]
[1729532726668,1.2641,166.13,166.12,3.0112]
[1729532727262,4.68,166.14,166.04,4.68]
[1729532727666,1.3492,166.15,166.04,4.68]
[1729532727865,2.98830948,166.14,166.13,3.0109]
[1729532731870,4.68,166.17,166.08,4.68]
[1729532732071,7.64873277,166.17,166.15,3.0105]
[1729532732469,7.64873277,166.17,166.07,4.68]
[1729532733267,7.64873277,166.17,166.16,3.0105]
[1729532735674,2.96873277,166.17,166.16,3.0105]
[1729532735872,2.96873277,166.17,166.09,6.0234]
[1729532735873,6.0362,166.18,166.17,3.0103]
[1729532736173,6.0362,166.18,166.09,6.0234]
[1729532736374,9.05872574,166.18,166.09,6.0234]
[1729532737173,4.37872574,166.18,166.09,6.0234]
[1729532737374,4.68,166.17,166.09,6.0234]
[1729532738977,4.68,166.17,166.16,3.0105]
[1729532739667,2.6099,166.22,166.11,4.68]
[1729532739871,2.6099,166.22,166.08,1.2741]
[1729532740073,2.6099,166.22,166.2,3.0097]
[1729532740267,2.6099,166.22,166.13,4.68]
[1729532740475,7.2899,166.22,166.1,10.7029]
[1729532740676,7.2899,166.22,166.04,117.75992447]
[1729532740677,36.2,166.21,166.04,117.75992447]
[1729532741179,37.2,166.21,166.14,3.0107]
[1729532741372,37.2,166.21,166.04,117.75992447]
[1729532741776,37.2,166.21,166.14,3.0106]
[1729532741977,37.2,166.21,166.04,117.75992447]
[1729532743672,37.2,166.21,166.14,3.0107]
[1729532743881,37.2,166.21,166.04,117.75992447]
[1729532744278,37.2,166.21,166.04,111.73472447]
[1729532745077,37.2,166.21,166.06,6.0243]
[1729532745575,19.11,166.21,166.06,6.0243]
[1729532745778,19.11,166.21,166.07,10.704]
[1729532746477,19.11,166.21,166.16,3.0103]
[1729532746883,19.11,166.21,166.07,10.704]
[1729532747790,37.2,166.21,166.07,10.704]
[1729532748481,37.2,166.21,166.14,3.0107]
[1729532748782,19.11,166.21,166.07,10.704]
[1729532748977,19.11,166.21,166.07,4.68]
[1729532749178,4.68,166.2,166.16,3.0104]
[1729532749378,40.88,166.2,166.08,7.331]
[1729532749781,22.79,166.2,166.08,7.331]
[1729532751380,1.0,166.21,166.08,1.3072]
[1729532751583,4.68,166.2,166.08,1.3072]
[1729532751786,22.79,166.2,166.05,4.68]
[1729532751991,22.79,166.2,166.14,3.0107]
[1729532752289,22.79,166.2,166.06,6.0245]
[1729532752491,40.88,166.2,166.16,3.0104]
[1729532752687,1.0,166.19,166.07,6.0242]
[1729532753090,1.3258,166.18,166.15,3.0106]